lending/lending_fUSD_20250224
["ID","MTS","AMOUNT","RATE_DAILY","PERIOD"]
[354257242,1740369048041,-500.0,0.0001652,2]
[354257243,1740369048051,-500.0,0.0001652,2]
[354257244,1740369048060,-922.45,0.0001652,2]
[354257245,1740369048070,-604.1,0.0001652,2]
[354257246,1740369048079,-642.85,0.0001652,2]
[354257247,1740369048089,-502.74,0.0001652,2]
[354257248,1740369048099,-617.22,0.0001652,2]
[354257249,1740369048109,-500.0,0.0001652,2]
[354257250,1740369048119,-500.0,0.0001652,2]
[354257251,1740369048128,-500.0,0.0001652,2]
[354257252,1740369048138,-329.93878389,0.0001652,2]
[354257253,1740369048147,-500.0,0.0001652,2]
[354257254,1740369048157,-500.0,0.0001652,2]
[354257255,1740369048166,-500.0,0.0001652,2]
[354257256,1740369048177,-585.52,0.0001652,2]
[354257257,1740369048186,-500.0,0.0001652,2]
[354257258,1740369048196,-500.0,0.0001652,2]
[354257259,1740369048206,-192.19386567,0.0001652,2]
[354257260,1740369048216,-532.49,0.0001652,2]
[354257261,1740369048227,-670.46,0.0001652,2]
[354257262,1740369048238,-544.78,0.0001652,2]
[354257263,1740369048247,-336.59092273,0.0001652,2]
[354257264,1740369048257,-500.0,0.0001652,2]
[354257265,1740369048266,-500.0,0.0001652,2]
[354257266,1740369048275,-500.0,0.0001652,2]
[354257267,1740369048285,-522.5,0.0001652,2]
[354257268,1740369048294,-500.0,0.0001652,2]
[354257269,1740369048304,-500.0,0.0001652,2]
[354257270,1740369048313,-500.0,0.0001652,2]
[354257271,1740369048323,-500.0,0.0001652,2]
[354257272,1740369048333,-500.0,0.0001652,2]
[354257273,1740369048342,-968.39,0.0001652,2]
[354257274,1740369048351,-500.0,0.0001652,2]
[354257275,1740369048361,-500.0,0.0001652,2]
[354257276,1740369048370,-930.91,0.0001652,2]
[354257277,1740369048379,-500.0,0.0001652,2]
[354257278,1740369048388,-751.97,0.0001652,2]
[354257279,1740369048398,-521.43,0.0001652,2]
[354257280,1740369048408,-500.0,0.0001652,2]
[354257281,1740369048417,-852.22,0.0001652,2]
[354257282,1740369048429,-542.9,0.0001652,2]
[354257283,1740369048648,-573.5,0.0001652,2]
[354257284,1740369048659,-751.18,0.0001652,2]
[354257285,1740369048675,-500.0,0.0001652,2]
[354257286,1740369048685,-518.55,0.0001652,2]
[354257287,1740369048696,-621.61,0.0001652,2]
[354257288,1740369048707,-830.38,0.0001652,2]
[354257289,1740369048717,-1218.55,0.0001652,2]
[354257290,1740369048728,-500.0,0.0001652,2]
[354257291,1740369048738,-500.0,0.0001652,2]
[354257292,1740369048749,-500.0,0.0001652,2]
[354257293,1740369048760,-1220.75,0.0001652,2]
[354257294,1740369048770,-855.02,0.0001652,2]
[354257295,1740369048780,-500.0,0.0001652,2]
[354257296,1740369048790,-671.26,0.0001652,2]
[354257297,1740369048800,-500.0,0.0001652,2]
[354257298,1740369048810,-529.46,0.0001652,2]
[354257299,1740369048820,-566.91,0.0001652,2]
[354257300,1740369048830,-500.0,0.0001652,2]
[354257301,1740369048840,-1226.35,0.0001652,2]
[354257302,1740369048850,-504.88,0.0001652,2]
[354257303,1740369048860,-500.0,0.0001652,2]
[354257304,1740369048870,-500.0,0.0001652,2]
[354257305,1740369048880,-500.0,0.0001652,2]
[354257306,1740369048890,-810.35,0.0001652,2]
[354257307,1740369048900,-677.12,0.0001652,2]
[354257308,1740369048910,-1052.62,0.0001652,2]
[354257309,1740369048921,-706.99,0.0001652,2]
[354257310,1740369048934,-500.0,0.0001652,2]
[354257311,1740369048945,-500.0,0.0001652,2]
[354257312,1740369048955,-500.0,0.0001652,2]
[354257313,1740369048965,-500.0,0.0001652,2]
[354257314,1740369048975,-552.76,0.0001652,2]
[354257315,1740369048985,-662.07,0.0001652,2]
[354257316,1740369048995,-500.0,0.0001652,2]
[354257317,1740369049005,-500.0,0.0001652,2]
[354257318,1740369049015,-500.0,0.0001652,2]
[354257319,1740369049025,-500.0,0.0001652,2]
[354257320,1740369049035,-658.17,0.0001652,2]
[354257321,1740369049045,-500.0,0.0001652,2]
[354257322,1740369049054,-1027.93,0.0001652,2]
[354257323,1740369049064,-500.0,0.0001652,2]
[354257324,1740369049074,-500.0,0.0001652,2]
[354257325,1740369049083,-1186.45,0.0001652,2]
[354257326,1740369049093,-500.0,0.0001652,2]
[354257327,1740369049103,-500.0,0.0001652,2]
[354257328,1740369049113,-659.37,0.0001652,2]
[354257329,1740369049122,-1447.18,0.0001652,2]
[354257330,1740369049132,-784.74,0.0001652,2]
[354257331,1740369049142,-574.2,0.0001652,2]
[354257332,1740369049151,-500.0,0.0001652,2]
[354257333,1740369049161,-500.0,0.0001652,2]
[354257334,1740369049171,-1547.54,0.0001652,2]
[354257335,1740369049183,-500.0,0.0001652,2]
[354257336,1740369049192,-500.0,0.0001652,2]
[354257337,1740369049203,-500.0,0.0001652,2]
[354257338,1740369049212,-2481.12,0.0001652,2]
[354257339,1740369049222,-1354.92,0.0001652,2]
[354257340,1740369049231,-500.0,0.0001652,2]
[354257341,1740369049241,-1042.46,0.0001652,2]
[354257342,1740369049251,-500.0,0.0001652,2]
[354257343,1740369049261,-500.0,0.0001652,2]
[354257344,1740369049270,-500.0,0.0001652,2]
[354257345,1740369049280,-500.0,0.0001652,2]
[354257346,1740369049289,-2436.06,0.0001652,2]
[354257347,1740369049298,-1542.62,0.0001652,2]
[354257348,1740369049308,-500.0,0.0001652,2]
[354257349,1740369049317,-578.05,0.0001652,2]
[354257350,1740369049327,-251.5136,0.0001652,2]
[354257351,1740369049337,-2249.95,0.0001652,2]
[354257352,1740369049347,-556.34645191,0.0001652,2]
[354257353,1740369049356,-500.0,0.0001652,2]
[354257354,1740369049366,-500.0,0.0001652,2]
[354257355,1740369049376,-1597.02,0.0001652,2]
[354257356,1740369049386,-1296.5,0.0001652,2]
[354257357,1740369049395,-500.0,0.0001652,2]
[354257358,1740369049404,-1204.2,0.0001652,2]
[354257359,1740369049413,-500.0,0.0001652,2]
[354257360,1740369049423,-2036.34,0.0001652,2]
[354257361,1740369049434,-12048.63,0.0001652,2]
[354257362,1740369049443,-1080.66,0.0001652,2]
[354257363,1740369049453,-1654.39,0.0001652,2]
[354257364,1740369049463,-217.44237403,0.0001652,2]
[354257365,1740369049472,-1231.62,0.0001652,2]
[354257366,1740369049483,-843.3,0.0001652,2]
[354257367,1740369049492,-565.74,0.0001652,2]
[354257368,1740369049501,-500.0,0.0001652,2]
[354257369,1740369049510,-961.13,0.0001652,2]
[354257370,1740369049519,-1422.17,0.0001652,2]
[354257371,1740369049528,-715.05,0.0001652,2]
[354257372,1740369049538,-1930.66,0.0001652,2]
[354257373,1740369049547,-739.35,0.0001652,2]
[354257374,1740369049556,-2287.23,0.0001652,2]
[354257375,1740369049566,-2471.76,0.0001652,2]
[354257376,1740369049575,-559.25,0.0001652,2]
[354257377,1740369049584,-2606.41,0.0001652,2]
[354257378,1740369049593,-500.0,0.0001652,2]
[354257379,1740369049604,-5482.31,0.0001652,2]
[354257380,1740369049614,-674.42,0.0001652,2]
[354257381,1740369049623,-849.53,0.0001652,2]
[354257382,1740369049633,-3009.2,0.0001652,2]
[354257383,1740369049643,-424.66813149,0.0001652,2]
[354257384,1740369049653,-3901.36,0.0001652,2]
[354257385,1740369049663,-500.97,0.0001652,2]
[354257386,1740369049673,-910.28,0.0001652,2]
[354257387,1740369049685,-816.72,0.0001652,2]
[354257388,1740369049694,-1644.82,0.0001652,2]
[354257389,1740369049704,-607.28,0.0001652,2]
[354257390,1740369049714,-500.0,0.0001652,2]
[354257391,1740369049723,-1151.09,0.0001652,2]
[354257392,1740369049733,-1817.64,0.0001652,2]
[354257393,1740369049743,-2294.45,0.0001652,2]
[354257394,1740369049754,-500.0,0.0001652,2]
[354257395,1740369049772,-1969.18,0.0001652,2]
[354257396,1740369049781,-2070.82,0.0001652,2]
[354257397,1740369049791,-897.24,0.0001652,2]
[354257398,1740369049801,-500.0,0.0001652,2]
[354257399,1740369049811,-558.86,0.0001652,2]
[354257400,1740369049820,-832.83,0.0001652,2]
[354257401,1740369049830,-500.0,0.0001652,2]
[354257402,1740369049840,-874.76,0.0001652,2]
[354257403,1740369049849,-500.0,0.0001652,2]
[354257404,1740369049859,-1016.2,0.0001652,2]
[354257405,1740369049868,-918.43,0.0001652,2]
[354257406,1740369049878,-2395.5,0.0001652,2]
[354257407,1740369049887,-500.0,0.0001652,2]
[354257408,1740369049896,-2195.94,0.0001652,2]
[354257409,1740369049906,-500.0,0.0001652,2]
[354257410,1740369049915,-1331.3,0.0001652,2]
[354257411,1740369049924,-500.0,0.0001652,2]
[354257412,1740369049935,-500.0,0.0001652,2]
[354257413,1740369049944,-500.0,0.0001652,2]
[354257414,1740369049954,-2438.64,0.0001652,2]
[354257415,1740369049963,-533.99,0.0001652,2]
[354257416,1740369049972,-2294.79,0.0001652,2]
[354257417,1740369049982,-1535.49,0.0001652,2]
[354257418,1740369049991,-2637.79,0.0001652,2]
[354257419,1740369050001,-500.0,0.0001652,2]
[354257420,1740369050010,-735.23,0.0001652,2]
[354257421,1740369050019,-2168.31,0.0001652,2]
[354257422,1740369050028,-2044.94,0.0001652,2]
[354257423,1740369050038,-3055.43,0.0001652,2]
[354257424,1740369050047,-2123.24,0.0001652,2]
[354257425,1740369050056,-500.0,0.0001652,2]
[354257426,1740369050065,-3158.18,0.0001652,2]
[354257427,1740369050075,-2338.15,0.0001652,2]
[354257428,1740369050085,-1615.6,0.0001652,2]
[354257429,1740369050096,-1481.0,0.0001652,2]
[354257430,1740369050106,-595.14,0.0001652,2]
[354257431,1740369050115,-500.0,0.0001652,2]
[354257432,1740369050124,-1302.83,0.0001652,2]
[354257433,1740369050134,-1980.34,0.0001652,2]
[354257434,1740369050143,-500.0,0.0001652,2]
[354257435,1740369050152,-644.13,0.0001652,2]
[354257436,1740369050162,-3364.7,0.0001652,2]
[354257437,1740369050172,-1075.1,0.0001652,2]
[354257438,1740369050181,-500.0,0.0001652,2]
[354257439,1740369050191,-3010.04,0.0001652,2]
[354257440,1740369050200,-2117.53,0.0001652,2]
[354257441,1740369050210,-500.0,0.0001652,2]
[354257442,1740369050219,-2460.1,0.0001652,2]
[354257443,1740369050228,-1605.05,0.0001652,2]
[354257444,1740369050237,-500.0,0.0001652,2]
[354257445,1740369050247,-1559.36,0.0001652,2]
[354257446,1740369050256,-500.0,0.0001652,2]
[354257447,1740369050270,-500.0,0.0001652,2]
[354257448,1740369050281,-1598.63,0.0001652,2]
[354257449,1740369050290,-500.0,0.0001652,2]
[354257450,1740369050299,-500.0,0.0001652,2]
[354257451,1740369050308,-3824.65,0.0001652,2]
[354257452,1740369050320,-716.1,0.0001652,2]
[354257453,1740369050330,-3391.72,0.0001652,2]
[354257454,1740369050339,-500.0,0.0001652,2]
[354257455,1740369050348,-2969.04,0.0001652,2]
[354257456,1740369050357,-541.86,0.0001652,2]
[354257457,1740369050367,-6461.1,0.0001652,2]
[354257458,1740369050376,-500.0,0.0001652,2]
[354257459,1740369050385,-500.0,0.0001652,2]
[354257460,1740369050395,-1789.78,0.0001652,2]
[354257461,1740369050404,-500.0,0.0001652,2]
[354257462,1740369050413,-1376.08,0.0001652,2]
[354257463,1740369050422,-500.0,0.0001652,2]
[354257464,1740369050433,-1867.62,0.0001652,2]
[354257465,1740369050442,-1246.34,0.0001652,2]
[354257466,1740369050452,-1112.25,0.0001652,2]
[354257467,1740369050461,-2532.71,0.0001652,2]
[354257468,1740369050470,-500.0,0.0001652,2]
[354257469,1740369050479,-500.0,0.0001652,2]
[354257470,1740369050489,-500.0,0.0001652,2]
[354257471,1740369050498,-1209.85,0.0001652,2]
[354257472,1740369050507,-500.0,0.0001652,2]
[354257473,1740369050517,-3724.49,0.0001652,2]
[354257474,1740369050526,-500.0,0.0001652,2]
[354257475,1740369050535,-1080.4,0.0001652,2]
[354257476,1740369050544,-500.0,0.0001652,2]
[354257477,1740369050553,-1309.99,0.0001652,2]
[354257478,1740369050562,-500.0,0.0001652,2]
[354257479,1740369050571,-880.5,0.0001652,2]
[354257480,1740369050581,-500.0,0.0001652,2]
[354257481,1740369050590,-500.0,0.0001652,2]
[354257482,1740369050598,-500.0,0.0001652,2]
[354257483,1740369050607,-1356.54,0.0001652,2]
[354257484,1740369050617,-500.0,0.0001652,2]
[354257485,1740369050626,-460.63640915,0.0001652,2]
[354257486,1740369050635,-2012.91,0.0001652,2]
[354257487,1740369050645,-624.29,0.0001652,2]
[354257488,1740369050654,-500.0,0.0001652,2]
[354257489,1740369050663,-1935.01,0.0001652,2]
[354257490,1740369050675,-3189.03,0.0001652,2]
[354257491,1740369050686,-2646.65,0.0001652,2]
[354257492,1740369050695,-500.0,0.0001652,2]
[354257493,1740369050707,-500.0,0.0001652,2]
[354257494,1740369050716,-505.84878289,0.0001652,2]
[354257495,1740369050725,-3163.09,0.0001652,2]
[354257496,1740369050734,-3513.68,0.0001652,2]
[354257497,1740369050745,-500.0,0.0001652,2]
[354257498,1740369050755,-1556.83,0.0001652,2]
[354257499,1740369050764,-1333.58,0.0001652,2]
[354257500,1740369050773,-500.0,0.0001652,2]
[354257501,1740369050782,-500.0,0.0001652,2]
[354257502,1740369050791,-500.0,0.0001652,2]
[354257503,1740369050800,-636.41,0.0001652,2]
[354257504,1740369050809,-500.0,0.0001652,2]
[354257505,1740369050818,-1969.93,0.0001652,2]
[354257506,1740369050827,-500.0,0.0001652,2]
[354257507,1740369050837,-3374.91,0.0001652,2]
[354257508,1740369050846,-1361.9,0.0001652,2]
[354257509,1740369050855,-500.0,0.0001652,2]
[354257510,1740369050864,-500.0,0.0001652,2]
[354257511,1740369050873,-156.70219814,0.0001652,2]
[354257512,1740369050882,-1134.69,0.0001652,2]
[354257513,1740369050891,-1337.93,0.0001652,2]
[354257514,1740369050900,-925.06,0.0001652,2]
[354257515,1740369050909,-1757.62,0.0001652,2]
[354257516,1740369050918,-500.0,0.0001652,2]
[354257517,1740369050928,-500.0,0.0001652,2]
[354257518,1740369050938,-1949.63,0.0001652,2]
[354257519,1740369050947,-1156.11,0.0001652,2]
[354257520,1740369050956,-1229.4,0.0001652,2]
[354257521,1740369050966,-500.0,0.0001652,2]
[354257522,1740369050975,-2870.18,0.0001652,2]
[354257523,1740369050986,-500.0,0.0001652,2]
[354257524,1740369050996,-500.0,0.0001652,2]
[354257525,1740369051005,-500.0,0.0001652,2]
[354257526,1740369051015,-4095.01,0.0001652,2]
[354257527,1740369051024,-2629.04,0.0001652,2]
[354257528,1740369051034,-500.0,0.0001652,2]
[354257529,1740369051044,-4515.29,0.0001652,2]
[354257530,1740369051053,-1849.58,0.0001652,2]
[354257531,1740369051062,-500.0,0.0001652,2]
[354257532,1740369051071,-2060.29,0.0001652,2]
[354257533,1740369051080,-500.0,0.0001652,2]
[354257534,1740369051090,-771.38,0.0001652,2]
[354257535,1740369051099,-1620.17,0.0001652,2]
[354257536,1740369051108,-261.56104657,0.0001652,2]
[354257537,1740369051134,-520.83883072,0.00016438,2]
[354257539,1740369393895,516.0,0.0002,120]
[354257540,1740370152988,175.21,8.767e-05,2]
[354257545,1740370232111,-163.18672006,0.00010941,2]
[354257546,1740370232120,-538.99395,0.00010958,2]
[354257547,1740370232130,-586.522083,0.00010958,2]
[354257548,1740370232141,-159.544923,0.00010958,2]
[354257549,1740370232150,-184.164569,0.00010958,2]
[354257550,1740370232159,-538.99395,0.00011041,2]
[354257551,1740370232169,-586.522083,0.00011041,2]
[354257552,1740370232179,-300.0,0.00011122,2]
[354257553,1740370232188,-538.99395,0.00011123,2]
[354257554,1740370232197,-586.522083,0.00011123,2]
[354257555,1740370232206,-538.99395,0.00011205,2]
[354257556,1740370232215,-586.522083,0.00011205,2]
[354257557,1740370232225,-538.99395,0.00011287,2]
[354257558,1740370232234,-586.522083,0.00011287,2]
[354257559,1740370232244,-538.99395,0.00011369,2]
[354257560,1740370232255,-586.522083,0.00011369,2]
[354257561,1740370232264,-150.0,0.00012054,2]
[354257562,1740370232273,-1597.48,0.00012674,2]
[354257563,1740370232282,-550.0,0.00013,2]
[354257564,1740370232292,-150.0,0.00013297,2]
[354257565,1740370232301,-163.18672005,0.00013311,2]
[354257566,1740370232310,-14851.79899582,0.00014526,2]
[354257567,1740370232331,-9048.20100418,0.00014526,2]
[354257568,1740370232341,-250.0,0.00014566,2]
[354257569,1740370232350,-200.0,0.0001466,2]
[354257570,1740370232360,-200.0,0.00014685,2]
[354257571,1740370232369,-8454.37,0.00014835,2]
[354257572,1740370232378,-300.0,0.0001488,2]
[354257573,1740370232389,-819.83,0.00014895,2]
[354257574,1740370232398,-1597.48,0.00014938,2]
[354257575,1740370232408,-200.0,0.0001494,2]
[354257576,1740370232417,-600.0,0.00015,2]
[354257577,1740370232426,-150.0,0.00015018,2]
[354257578,1740370232435,-300.0,0.00015065,2]
[354257579,1740370232444,-150.0,0.00015066,2]
[354257580,1740370232453,-150.0,0.00015066,2]
[354257581,1740370232462,-150.0,0.00015066,2]
[354257582,1740370232472,-200.0,0.0001522,2]
[354257583,1740370232481,-1000.0,0.00015394,2]
[354257584,1740370232490,-200.0,0.000155,2]
[354257585,1740370232499,-346.19,0.00015636,2]
[354257586,1740370232509,-163.18672005,0.0001568,2]
[354257587,1740370232518,-995.45,0.00015741,2]
[354257588,1740370232527,-200.0,0.0001578,2]
[354257589,1740370232536,-204.0,0.0001578,2]
[354257590,1740370232545,-150.0,0.00015876,2]
[354257591,1740370232554,-3919.0,0.00015876,2]
[354257592,1740370232563,-1111.0,0.00015876,2]
[354257593,1740370232573,-200.0,0.0001606,2]
[354257594,1740370232582,-204.0,0.0001606,2]
[354257595,1740370232591,-365.0,0.000161,2]
[354257596,1740370232600,-4520.71,0.00016116,2]
[354257597,1740370232609,-239.87115715,0.00016338,2]
[354257598,1740370232618,-391.79564936,0.00016338,2]
[354257599,1740370232627,-660.4446,0.00016338,2]
[354257600,1740370232637,-2096.2048,0.00016338,2]
[354257601,1740370232646,-2500.0,0.00016338,2]
[354257602,1740370232655,-200.0,0.0001634,2]
[354257603,1740370232665,-204.0,0.0001634,2]
[354257604,1740370232674,-215.9441187,0.0001635,2]
[354257605,1740370232683,-391.79564931,0.00016355,2]
[354257606,1740370232692,-391.79564931,0.00016373,2]
[354257607,1740370232700,-391.79564931,0.0001639,2]
[354257608,1740370232709,-200.0,0.000164,5]
[354257609,1740370232718,-391.79564931,0.00016407,2]
[354257610,1740370232727,-239.87115715,0.00016411,2]
[354257611,1740370232737,-695.60285891,0.00016415,2]
[354257612,1740370232746,-391.79564931,0.00016425,2]
[354257614,1740370232755,-1352.5,0.00016428,2]
[354257616,1740370232764,-434.6907806,0.00016437,2]
[354257617,1740370232773,-500.64326494,0.00016438,2]
[354257618,1740370232782,-538.99395,0.00016438,2]
[354257619,1740370232791,-586.522083,0.00016438,2]
[354257620,1740370232800,-654.56,0.00016438,2]
[354257621,1740370232808,-456.06657294,0.00016438,2]
[354257622,1740370232818,-561.51,0.00016438,2]
[354257623,1740370232827,-262.17493312,0.00016438,2]
[354257624,1740370232836,-500.0,0.00016438,2]
[354257625,1740370232845,-500.0,0.00016438,2]
[354257626,1740370232854,-500.0,0.00016438,2]
[354257627,1740370232863,-500.0,0.00016438,2]
[354257628,1740370232872,-504.30228829,0.00016438,2]
[354257629,1740370232881,-632.37,0.00016438,2]
[354257630,1740370232891,-500.0,0.00016438,2]
[354257631,1740370232901,-500.0,0.00016438,2]
[354257632,1740370232910,-500.0,0.00016438,2]
[354257633,1740370232919,-597.65,0.00016438,2]
[354257634,1740370232928,-500.0,0.00016438,2]
[354257635,1740370232937,-500.0,0.00016438,2]
[354257636,1740370232945,-500.0,0.00016438,2]
[354257637,1740370232955,-536.73,0.00016438,2]
[354257638,1740370232964,-500.0,0.00016438,2]
[354257639,1740370232973,-500.0,0.00016438,2]
[354257640,1740370232981,-500.0,0.00016438,2]
[354257641,1740370232990,-565.79,0.00016438,2]
[354257642,1740370232999,-308.63068947,0.00016438,2]
[354257643,1740370233008,-500.0,0.00016438,2]
[354257644,1740370233017,-500.0,0.00016438,2]
[354257645,1740370233026,-585.43,0.00016438,2]
[354257646,1740370233036,-500.0,0.00016438,2]
[354257647,1740370233045,-1958.12,0.00016438,2]
[354257648,1740370233053,-500.0,0.00016438,2]
[354257649,1740370233066,-500.0,0.00016438,2]
[354257650,1740370233076,-674.94,0.00016438,2]
[354257651,1740370233086,-500.0,0.00016438,2]
[354257652,1740370233096,-500.0,0.00016438,2]
[354257653,1740370233105,-500.0,0.00016438,2]
[354257654,1740370233115,-745.66,0.00016438,2]
[354257655,1740370233124,-500.0,0.00016438,2]
[354257656,1740370233134,-500.0,0.00016438,2]
[354257657,1740370233146,-500.0,0.00016438,2]
[354257658,1740370233155,-500.0,0.00016438,2]
[354257659,1740370233165,-1348.94,0.00016438,2]
[354257660,1740370233174,-500.0,0.00016438,2]
[354257661,1740370233184,-500.0,0.00016438,2]
[354257662,1740370233193,-699.72,0.00016438,2]
[354257663,1740370233202,-500.0,0.00016438,2]
[354257664,1740370233212,-1547.19,0.00016438,2]
[354257665,1740370233220,-500.0,0.00016438,2]
[354257666,1740370233230,-1904.22,0.00016438,2]
[354257667,1740370233239,-500.0,0.00016438,2]
[354257668,1740370233249,-526.35,0.00016438,2]
[354257669,1740370233258,-500.0,0.00016438,2]
[354257670,1740370233267,-1002.13,0.00016438,2]
[354257671,1740370233277,-500.0,0.00016438,2]
[354257672,1740370233286,-500.0,0.00016438,2]
[354257673,1740370233295,-1134.15,0.00016438,2]
[354257674,1740370233305,-500.0,0.00016438,2]
[354257675,1740370233314,-500.0,0.00016438,2]
[354257676,1740370233324,-500.0,0.00016438,2]
[354257677,1740370233333,-541.02801823,0.00016438,2]
[354257678,1740370233343,-571.09,0.00016438,2]
[354257679,1740370233352,-500.0,0.00016438,2]
[354257680,1740370233362,-553.86,0.00016438,2]
[354257681,1740370233371,-1052.61,0.00016438,2]
[354257682,1740370233381,-850.74,0.00016438,2]
[354257683,1740370233392,-1131.97,0.00016438,2]
[354257684,1740370233402,-500.0,0.00016438,2]
[354257685,1740370233411,-500.0,0.00016438,2]
[354257686,1740370233421,-899.17,0.00016438,2]
[354257687,1740370233431,-500.0,0.00016438,2]
[354257688,1740370233441,-787.33,0.00016438,2]
[354257689,1740370233451,-500.0,0.00016438,2]
[354257690,1740370233461,-500.0,0.00016438,2]
[354257691,1740370233470,-500.0,0.00016438,2]
[354257692,1740370233480,-1272.39,0.00016438,2]
[354257693,1740370233490,-891.59,0.00016438,2]
[354257694,1740370233499,-769.41,0.00016438,2]
[354257695,1740370233509,-500.0,0.00016438,2]
[354257696,1740370233518,-746.3,0.00016438,2]
[354257697,1740370233528,-512.65,0.00016438,2]
[354257698,1740370233537,-1139.12,0.00016438,2]
[354257699,1740370233547,-629.92,0.00016438,2]
[354257700,1740370233557,-1166.53,0.00016438,2]
[354257701,1740370233569,-500.0,0.00016438,2]
[354257702,1740370233580,-500.0,0.00016438,2]
[354257703,1740370233590,-500.0,0.00016438,2]
[354257704,1740370233599,-500.0,0.00016438,2]
[354257705,1740370233609,-654.42,0.00016438,2]
[354257706,1740370233618,-500.0,0.00016438,2]
[354257707,1740370233627,-620.82,0.00016438,2]
[354257708,1740370233636,-500.0,0.00016438,2]
[354257709,1740370233647,-682.77,0.00016438,2]
[354257710,1740370233657,-589.28,0.00016438,2]
[354257711,1740370233667,-500.0,0.00016438,2]
[354257712,1740370233677,-500.0,0.00016438,2]
[354257713,1740370233686,-677.74,0.00016438,2]
[354257714,1740370233696,-500.0,0.00016438,2]
[354257715,1740370233706,-500.0,0.00016438,2]
[354257716,1740370233715,-500.0,0.00016438,2]
[354257717,1740370233725,-500.0,0.00016438,2]
[354257718,1740370233735,-500.0,0.00016438,2]
[354257719,1740370233744,-500.0,0.00016438,2]
[354257720,1740370233754,-500.0,0.00016438,2]
[354257721,1740370233763,-515.59,0.00016438,2]
[354257722,1740370233773,-500.0,0.00016438,2]
[354257723,1740370233783,-500.0,0.00016438,2]
[354257724,1740370233792,-500.0,0.00016438,2]
[354257725,1740370233802,-973.07,0.00016438,2]
[354257726,1740370233811,-500.0,0.00016438,2]
[354257727,1740370233821,-500.0,0.00016438,2]
[354257728,1740370233830,-531.07,0.00016438,2]
[354257729,1740370233840,-614.59,0.00016438,2]
[354257730,1740370233849,-673.96,0.00016438,2]
[354257731,1740370233859,-500.0,0.00016438,2]
[354257732,1740370233869,-500.0,0.00016438,2]
[354257733,1740370233879,-545.54,0.00016438,2]
[354257734,1740370233889,-500.0,0.00016438,2]
[354257735,1740370233899,-500.0,0.00016438,2]
[354257736,1740370233909,-500.0,0.00016438,2]
[354257737,1740370233919,-546.89,0.00016438,2]
[354257738,1740370233928,-500.0,0.00016438,2]
[354257739,1740370233938,-583.18,0.00016438,2]
[354257740,1740370233947,-500.0,0.00016438,2]
[354257741,1740370233957,-882.41,0.00016438,2]
[354257742,1740370233967,-500.0,0.00016438,2]
[354257743,1740370233976,-502.84,0.00016438,2]
[354257744,1740370233985,-576.49,0.00016438,2]
[354257745,1740370233994,-708.07,0.00016438,2]
[354257746,1740370234004,-500.0,0.00016438,2]
[354257747,1740370234013,-500.0,0.00016438,2]
[354257748,1740370234024,-500.0,0.00016438,2]